Workbook

Sheet NDF
B3: Note de frais n°21
B4: Le Bureau du Print
B5: Date | C5: Clients | D5: Frais kilométriques | F5: Taxi / Train / TCL | G5: Péage/Parking | I5: Hôtel | K5: Restaurant | M5: Réception/autres | P5: Divers | Q5: Total
E6: TTC | G6: TTC | H6: TVA | I6: TTC | J6: TVA | K6: TTC | L6: TVA | M6: TTC | N6: TVA | O6: NOM
B7: 2025-06-01 | E7: =D7*0.447 -> 0 | Q7: =E7+F7+G7+I7+K7+M7+P7 -> 0
B8: 2025-06-02 | C8: CODE & CLICS / COPIDEM / CARRIER / IEL / TOMASELLI / | D8: 114 | E8: 50.958 | G8: 8.8 | H8: 0.36 | K8: 17.4 | L8: 1.58 | O8: Clients CARRIER / TOMASELLI / repas | Q8: =E8+F8+G8+I8+K8+M8+P8 -> 77.158
B9: 2025-06-03 | C9: CELDA / AGG PRINT / TOP GUN / | D9: 79 | E9: 35.313 | M9: 141.98 | N9: 23.67 | O9: Abonnement Microsoft 365 / coque téléphone | Q9: 177.293
B10: 2025-06-04 | E10: 0 | Q10: 0
B11: 2025-06-05 | C11: AGG PRINT / CARRIER / TOSHIBA / | D11: 67 | E11: 29.949 | G11: 2.2 | H11: 0.36 | O11: Client CARRIER / | Q11: 32.149
B12: 2025-06-06 | C12: AGG PRINT / CELDA / TOP GUN / | E12: 0 | Q12: 0
B13: 2025-06-07 | E13: 0 | Q13: 0
B14: 2025-06-08 | E14: 0 | Q14: 0
B15: 2025-06-09 | C15: AGG PRINT / CODE & CLICS / | D15: 45 | E15: 20.115 | Q15: 20.115
B16: 2025-06-10 | C16: CARRIER 2 SITES | D16: 214 | E16: 95.658 | G16: 12.8 | H16: 2.13 | K16: 18.5 | L16: 1.68 | O16: Client CARRIER / repas | Q16: 126.958
B17: 2025-06-11 | C17: AGG PRINT / SAFER / | D17: 45 | E17: 20.115 | Q17: 20.115
B18: 2025-06-12 | C18: AGG PRINT / EKNO / | D18: 53 | E18: 23.691 | Q18: 23.691
B19: 2025-06-13 | C19: AGG PRINT / CARRIER / | D19: 62 | E19: 27.714 | G19: 2.2 | H19: 0.36 | O19: Client CARRIER / | Q19: 29.914
B20: 2025-06-14 | E20: 0 | Q20: 0
B21: 2025-06-15 | E21: 0 | Q21: 0
B22: 2025-06-16 | C22: CELDA / COPIDEM / | D22: 54 | E22: 24.138 | Q22: 24.138
B23: 2025-06-17 | C23: AGG PRINT / SAFER / | D23: 45 | E23: 20.115 | Q23: 20.115
B24: 2025-06-18 | C24: CODE & CLICS / DS ROUTAGE / SLH / TOP GUN | D24: 106 | E24: 47.382 | K24: 5.45 | L24: 0.28 | M24: 46 | N24: 7.67 | O24: Viennoiserie Client TOP GUN / Prototype sac Client CHAPONNIERE | Q24: =E24+F24+G24+I24+K24+M24+P24 -> 98.832
B25: 2025-06-19 | C25: A.E.D.C.P. / LA PAROISSE DE SAINTE BLANDINE DU FLEUVE / | D25: 67 | E25: 29.949 | Q25: 29.949
B26: 2025-06-20 | C26: LES AMIS DU VIEUX BRIGNAIS / LA PAROISSE DE SAINT GENIS-LAVAL | D26: 70 | E26: 31.29 | Q26: 31.29
B27: 2025-06-21 | E27: 0 | Q27: 0
B28: 2025-06-22 | E28: 0 | Q28: 0
B29: 2025-06-23 | C29: SIC - Réseau ACV France / France Arménie / FAURITE / | D29: 80 | E29: 35.76 | Q29: 35.76
B30: 2025-06-24 | C30: AGG PRINT / EKNO / SAFER / CARRIER / | D30: 85 | E30: 37.995 | Q30: 37.995
B31: 2025-06-25 | C31: TOSHIBA / REP INTERNATIONAL / PROBIOQUAL / LA POSTE / | D31: 75 | E31: 33.525 | M31: 69.95 | O31: Client EFOR (colissimo - 5 agences) | Q31: 103.475
B32: 2025-06-26 | C32: EFOR GROUP / HILAIRE / SCGA / AGG PRINT / | D32: 77 | E32: 34.419 | Q32: 34.419
B33: 2025-06-27 | C33: ARSA / FAURITE / CODE & CLICS / COPIDEM | D33: 81 | E33: 36.207 | Q33: 36.207
B34: 2025-06-28 | E34: 0 | Q34: 0
B35: 2025-06-29 | E35: 0 | Q35: 0
B36: 2025-06-30 | C36: CARRIER / TOSHIBA / AGG PRINT / | D36: 79 | E36: =D36*0.447 -> 35.313 | G36: 2.2 | H36: 0.36 | O36: Client CARRIER / | Q36: 37.513
Q37: 0
B38: Kms fin de mois | D38: =SUM(D8:D36) -> 1498 | Q38: =SUM(Q7:Q37) -> 997.086
B39: TOTAL TVA PAR CATEGORIE | H39: =SUM(H8:H38) -> 3.57 | J39: =SUM(J7:J38) -> 0 | L39: =SUM(L7:L38) -> 3.54 | N39: =SUM(N7:N38) -> 31.34
B40: TOTAL TTC PAR CATEGORIE | E40: =SUM(E7:E39) -> 669.606 | F40: =SUM(F7:F37) -> 0 | G40: =SUM(G7:G37) -> 28.2 | I40: =SUM(I7:I37) -> 0 | K40: =SUM(K7:K37) -> 41.35 | M40: =SUM(M7:M37) -> 257.93 | P40: =SUM(P7:P39) -> 0
L42: HT | M42: TVA | N42: TTC | P42: Fait le | Q42: 2025-06-30
L43: =N43-M43 -> 958.636 | M43: =SUM(D39:P39) -> 38.45 | N43: =SUM(D40:P40) -> 997.086

Sheet Facturation 2024_2025
C2: NB | D2: N° de facture | E2: Clients / Fournisseurs | F2: ACHATS | I2: VENTES | L2: Taux TVA
F3: PA HT | G3: TVA | H3: PA TTC | I3: PV HT | J3: TVA | K3: PV TTC
C4: 1 | D4: 2025-126 | E4: CARRIER / CODE & CLICS | F4: 242.1 | G4: 48.42 | H4: 290.52 | I4: 486 | J4: 97.2 | K4: 583.2 | L4: 20
C5: 2 | D5: 2025-127 | E5: CARRIER / CODE & CLICS - COPIDEM | F5: 308.4 | G5: 61.68 | H5: 370.08 | I5: 619 | J5: 123.8 | K5: 742.8 | L5: 20
C6: 3 | D6: 2025-128 | E6: TOMASELLI COLLECTION / CODE & CLICS | F6: 97.75 | G6: 19.55 | H6: 117.3 | I6: 163 | J6: 32.6 | K6: 195.6 | L6: 20
C7: 4 | D7: 2025-129 | E7: CARRIER / HELLOPRINT | F7: 367.44 | G7: 73.488 | H7: 440.928 | I7: 850 | J7: 170 | K7: 1020 | L7: 20
C8: 5 | D8: 2025-130 | E8: CARRIER / IEL | F8: 750 | G8: 150 | H8: 900 | I8: 1480 | J8: 296 | K8: 1776 | L8: 20
C9: 6 | D9: 2025-131 | E9: SAFER / AGG PRINT | F9: 25 | G9: 5 | H9: 30 | I9: 75 | J9: 15 | K9: 90 | L9: 20
C10: 7 | D10: 2025-132 | E10: CELDA / AGG PRINT | F10: 245 | G10: 49 | H10: 294 | I10: 604 | J10: 120.8 | K10: 724.8 | L10: 20
C11: 8 | D11: 2025-133 | E11: EKNO / AGG PRINT | F11: 58 | G11: 11.6 | H11: 69.6 | I11: 146 | J11: 29.2 | K11: 175.2 | L11: 20
C12: 9 | D12: 2025-134 | E12: SAFER / AGG PRINT | F12: 25 | G12: 5 | H12: 30 | I12: 75 | J12: 15 | K12: 90 | L12: 20
C13: 10 | D13: 2025-135 | E13: EKNO / HELLOPRINT | F13: 925.83 | G13: 185.166 | H13: 1110.996 | I13: 1798 | J13: 359.6 | K13: 2157.6 | L13: 20
C14: 11 | D14: 2025-136 | E14: FMBDS / JF IMPRESSION | F14: 1030 | G14: 103 | H14: 1133 | I14: 1779 | J14: 177.9 | K14: 1956.9 | L14: 10
C15: 12 | D15: 2025-137 | E15: SLH / CODE & CLICS | F15: 661.3 | G15: 132.26 | H15: 793.56 | I15: 1103 | J15: 220.6 | K15: 1323.6 | L15: 20
C16: 13 | D16: 2025-138 | E16: SAFER / AGG PRINT | F16: 29 | G16: 5.8 | H16: 34.8 | I16: 100 | J16: 20 | K16: 120 | L16: 20
C17: 14 | D17: 2025-139 | E17: SCGA / AGG PRINT | F17: 160 | G17: 32 | H17: 192 | I17: 315 | J17: 63 | K17: 378 | L17: 20
C18: 15 | D18: 2025-140 | E18: EFOR GROUP / AGG PRINT | F18: 122 | G18: 24.4 | H18: 146.4 | I18: 260 | J18: 52 | K18: 312 | L18: 20
C19: 16 | D19: 2025-141 | E19: EFOR STRASBOURG / AGG PRINT | F19: 63 | G19: 12.6 | H19: 75.6 | I19: 130 | J19: 26 | K19: 156 | L19: 20
C20: 17 | D20: 2025-142 | E20: EFOR HEALTHCARE PARIS / AGG PRINT | F20: 152 | G20: 30.4 | H20: 182.4 | I20: 325 | J20: 65 | K20: 390 | L20: 20
C21: 18 | D21: 2025-143 | E21: EFOR LILLE / AGG PRINT | F21: 63 | G21: 12.6 | H21: 75.6 | I21: 130 | J21: 26 | K21: 156 | L21: 20
C22: 19 | D22: 2025-144 | E22: CVO-EUROPE SPRL / AGG PRINT | F22: 152 | G22: 30.4 | H22: 182.4 | I22: 325 | J22: 0 | K22: 325 | L22: 0
C23: 20 | D23: 2025-145 | E23: CARRIER / AGG PRINT | F23: 35 | G23: 7 | H23: 42 | I23: 140 | J23: 28 | K23: 168 | L23: 20
C24: 21 | D24: 2025-146 | E24: France Arménie / JF IMPRESSION | I24: 343 | J24: 68.6 | K24: 411.6 | L24: 20
C25: 22 | D25: 2025-147 | E25: France Arménie / SUD ROUTAGE | I25: 100 | J25: 20 | K25: 120 | L25: 20
C26: =COUNTA(C4:C25) -> 22 | E26: JUIN 2025 | F26: ACHATS | I26: VENTES | L26: Solde TVA
F27: PA HT | G27: TVA | H27: PA TTC | I27: PV HT | J27: TVA | K27: PV TTC
F28: =SUM(F3:F25) -> 5511.82 | G28: =SUM(G3:G25) -> 999.364 | H28: =SUM(H3:H25) -> 6511.184 | I28: =SUM(I3:I25) -> 11346 | J28: =SUM(J3:J25) -> 2026.3 | K28: =SUM(K3:K25) -> 13372.3 | L28: =J28-G28 -> 1026.936
